[Event "*** Titled Tuesday Blitz"]
[Site "Chess.com"]
[Date "2020.05.05"]
[Round "3"]
[White "PotapovaM"]
[Black "wild_cat99"]
[Result "1/2-1/2"]
[WhiteElo "2372"]
[BlackElo "2565"]
[TimeControl "180+1"]
[EndTime "10:31:19 PDT"]
[Termination "Game drawn - insufficient material"]

1. d4 {[%clk 0:03:00.9]} 1... Nf6 {[%clk 0:02:59.8]} 2. c4 {[%clk 0:03:00.2]}
2... g6 {[%clk 0:03:00.2]} 3. Nc3 {[%clk 0:03:00.1]} 3... d5 {[%clk 0:03:00.5]}
4. cxd5 {[%clk 0:03:01]} 4... Nxd5 {[%clk 0:03:01.4]} 5. e4 {[%clk 0:03:01.4]}
5... Nxc3 {[%clk 0:03:01.7]} 6. bxc3 {[%clk 0:03:02.3]} 6... Bg7 {[%clk
0:03:02.5]} 7. Be3 {[%clk 0:03:02.1]} 7... c5 {[%clk 0:03:02.4]} 8. Nf3 {[%clk
0:03:00.4]} 8... Qa5 {[%clk 0:03:02.1]} 9. Qd2 {[%clk 0:03:00]} 9... cxd4 {[%clk
0:03:01.8]} 10. cxd4 {[%clk 0:03:00]} 10... Qxd2+ {[%clk 0:03:02.7]} 11. Bxd2
{[%clk 0:03:00.4]} 11... Nc6 {[%clk 0:03:01.1]} 12. Bb5 {[%clk 0:02:58.4]} 12...
O-O {[%clk 0:02:59.9]} 13. Bxc6 {[%clk 0:02:51.9]} 13... bxc6 {[%clk 0:03:00.8]}
14. O-O {[%clk 0:02:51.7]} 14... f5 {[%clk 0:02:58.7]} 15. exf5 {[%clk
0:02:34.7]} 15... Bxf5 {[%clk 0:02:59.6]} 16. Rfe1 {[%clk 0:02:30.9]} 16... c5
{[%clk 0:02:46.8]} 17. Be3 {[%clk 0:02:03.8]} 17... Be4 {[%clk 0:02:45]} 18. Ne5
{[%clk 0:01:52.1]} 18... Rad8 {[%clk 0:02:38.6]} 19. Rad1 {[%clk 0:01:40.1]}
19... cxd4 {[%clk 0:02:28.8]} 20. Rxd4 {[%clk 0:01:31.2]} 20... Bd5 {[%clk
0:02:26.1]} 21. Red1 {[%clk 0:01:07]} 21... e6 {[%clk 0:02:23.8]} 22. f4 {[%clk
0:01:06.4]} 22... g5 {[%clk 0:02:20.5]} 23. g3 {[%clk 0:01:02.2]} 23... gxf4
{[%clk 0:02:20.3]} 24. Bxf4 {[%clk 0:00:58]} 24... Rc8 {[%clk 0:02:12.7]} 25.
R4d2 {[%clk 0:00:54.1]} 25... Rf5 {[%clk 0:02:11.1]} 26. Re1 {[%clk 0:00:36.2]}
26... h5 {[%clk 0:02:05.4]} 27. Kf2 {[%clk 0:00:31.5]} 27... h4 {[%clk
0:02:04.6]} 28. a4 {[%clk 0:00:28.5]} 28... hxg3+ {[%clk 0:02:02.5]} 29. hxg3
{[%clk 0:00:28.3]} 29... Bf8 {[%clk 0:02:01.8]} 30. Nd3 {[%clk 0:00:20.2]} 30...
Rc4 {[%clk 0:01:55.5]} 31. a5 {[%clk 0:00:16.8]} 31... Bg7 {[%clk 0:01:50.8]}
32. Ne5 {[%clk 0:00:10.8]} 32... Ra4 {[%clk 0:01:49.5]} 33. Ng6 {[%clk
0:00:09.9]} 33... Kf7 {[%clk 0:01:44.2]} 34. Ne5+ {[%clk 0:00:10]} 34... Ke7
{[%clk 0:01:42.8]} 35. Ng6+ {[%clk 0:00:09.4]} 35... Kf6 {[%clk 0:01:31.5]} 36.
Nh4 {[%clk 0:00:06.4]} 36... Rh5 {[%clk 0:01:31.6]} 37. Nf3 {[%clk 0:00:05.7]}
37... Bf8 {[%clk 0:01:28.2]} 38. Be5+ {[%clk 0:00:05.4]} 38... Kf7 {[%clk
0:01:25.6]} 39. Bf4 {[%clk 0:00:05.6]} 39... Bc5+ {[%clk 0:01:22.2]} 40. Be3
{[%clk 0:00:06.1]} 40... Bb4 {[%clk 0:01:16.4]} 41. Rd4 {[%clk 0:00:04]} 41...
Bxe1+ {[%clk 0:01:16]} 42. Kxe1 {[%clk 0:00:03.7]} 42... Rxd4 {[%clk 0:01:14.8]}
43. Nxd4 {[%clk 0:00:04.6]} 43... Rh2 {[%clk 0:01:07.8]} 44. Bf2 {[%clk
0:00:03.6]} 44... e5 {[%clk 0:01:05.1]} 45. Nb5 {[%clk 0:00:03.8]} 45... Rh1+
{[%clk 0:01:00.9]} 46. Kd2 {[%clk 0:00:03.5]} 46... a6 {[%clk 0:01:00.6]} 47.
Nc3 {[%clk 0:00:03.1]} 47... Bc4 {[%clk 0:01:00]} 48. Ke3 {[%clk 0:00:03.3]}
48... Ra1 {[%clk 0:00:58.7]} 49. Ne4 {[%clk 0:00:01.8]} 49... Rxa5 {[%clk
0:00:58]} 50. Nd6+ {[%clk 0:00:01.7]} 50... Ke6 {[%clk 0:00:58.9]} 51. Nxc4
{[%clk 0:00:02.6]} 51... Ra2 {[%clk 0:00:59.1]} 52. Nd2 {[%clk 0:00:02.9]} 52...
a5 {[%clk 0:00:57.9]} 53. Kd3 {[%clk 0:00:03.1]} 53... a4 {[%clk 0:00:56.8]} 54.
Bc5 {[%clk 0:00:03.7]} 54... Kd5 {[%clk 0:00:53.5]} 55. Be7 {[%clk 0:00:03.6]}
55... Ra1 {[%clk 0:00:29.6]} 56. g4 {[%clk 0:00:04.3]} 56... a3 {[%clk
0:00:19.3]} 57. Kc3 {[%clk 0:00:04.3]} 57... Rc1+ {[%clk 0:00:17.6]} 58. Kb3
{[%clk 0:00:04.2]} 58... a2 {[%clk 0:00:16.8]} 59. Kxa2 {[%clk 0:00:02.4]} 59...
Rc2+ {[%clk 0:00:17]} 60. Kb3 {[%clk 0:00:03.3]} 60... Rxd2 {[%clk 0:00:17.9]}
61. g5 {[%clk 0:00:04.1]} 61... Rg2 {[%clk 0:00:18.6]} 62. Kc3 {[%clk
0:00:04.4]} 62... Ke4 {[%clk 0:00:17.9]} 63. Kc4 {[%clk 0:00:04.2]} 63... Kf3
{[%clk 0:00:17.9]} 64. Kd5 {[%clk 0:00:04.5]} 64... e4 {[%clk 0:00:17.9]} 65.
Ke5 {[%clk 0:00:04.1]} 65... e3 {[%clk 0:00:17.5]} 66. Kf5 {[%clk 0:00:05]}
66... e2 {[%clk 0:00:17]} 67. Bb4 {[%clk 0:00:05.4]} 67... Kg3 {[%clk 0:00:09]}
68. g6 {[%clk 0:00:04.2]} 68... Kh4 {[%clk 0:00:09.6]} 69. Kf6 {[%clk
0:00:03.9]} 69... Rf2+ {[%clk 0:00:09]} 70. Ke7 {[%clk 0:00:03.4]} 70... Rg2
{[%clk 0:00:06.9]} 71. Kf7 {[%clk 0:00:02.6]} 71... Rf2+ {[%clk 0:00:06.4]} 72.
Ke7 {[%clk 0:00:03.1]} 72... Rg2 {[%clk 0:00:06.5]} 73. Kf7 {[%clk 0:00:03.3]}
73... Rg1 {[%clk 0:00:06.4]} 74. g7 {[%clk 0:00:02.8]} 74... Rxg7+ {[%clk
0:00:06.5]} 75. Kxg7 {[%clk 0:00:02.8]} 75... Kg3 {[%clk 0:00:07.4]} 76. Be1+
{[%clk 0:00:03.2]} 76... Kg2 {[%clk 0:00:06.8]} 77. Bb4 {[%clk 0:00:04.1]} 77...
Kf1 {[%clk 0:00:07.7]} 78. Kf6 {[%clk 0:00:04.3]} 78... e1=Q {[%clk 0:00:08]}
79. Bxe1 {[%clk 0:00:04]} 1/2-1/2

[Event "*** Titled Tuesday Blitz"]
[Site "Chess.com"]
[Date "2020.05.05"]
[Round "3"]
[White "cukus"]
[Black "MikaelyanArman"]
[Result "0-1"]
[WhiteElo "2505"]
[BlackElo "2740"]
[TimeControl "180+1"]
[EndTime "10:31:20 PDT"]
[Termination "MikaelyanArman won by resignation"]

1. e4 {[%clk 0:03:00.9]} 1... e5 {[%clk 0:02:58]} 2. Nf3 {[%clk 0:03:00.8]} 2...
Nc6 {[%clk 0:02:58.5]} 3. Bb5 {[%clk 0:03:00.6]} 3... a6 {[%clk 0:02:58.4]} 4.
Ba4 {[%clk 0:03:00.5]} 4... Nf6 {[%clk 0:02:58.7]} 5. O-O {[%clk 0:03:00.2]}
5... Be7 {[%clk 0:02:58.6]} 6. Re1 {[%clk 0:02:58.9]} 6... b5 {[%clk 0:02:58.3]}
7. Bb3 {[%clk 0:02:59.3]} 7... d6 {[%clk 0:02:58.1]} 8. c3 {[%clk 0:02:59.2]}
8... O-O {[%clk 0:02:57.9]} 9. h3 {[%clk 0:02:59.5]} 9... Bb7 {[%clk 0:02:57.3]}
10. d4 {[%clk 0:02:58.5]} 10... Nd7 {[%clk 0:02:56.2]} 11. Nbd2 {[%clk
0:02:54.5]} 11... exd4 {[%clk 0:02:56.4]} 12. cxd4 {[%clk 0:02:54.5]} 12... Bf6
{[%clk 0:02:49.7]} 13. Nf1 {[%clk 0:02:51.2]} 13... Na5 {[%clk 0:02:39.1]} 14.
Bc2 {[%clk 0:02:51.2]} 14... Re8 {[%clk 0:02:38.6]} 15. Bf4 {[%clk 0:02:47.4]}
15... Nc4 {[%clk 0:02:35.3]} 16. b3 {[%clk 0:02:40.5]} 16... Ncb6 {[%clk
0:02:08.2]} 17. Rc1 {[%clk 0:02:33.2]} 17... g6 {[%clk 0:02:03.5]} 18. N1h2
{[%clk 0:02:31.4]} 18... h5 {[%clk 0:02:01.9]} 19. Bb1 {[%clk 0:02:21.2]} 19...
Nf8 {[%clk 0:01:39.3]} 20. d5 {[%clk 0:02:11.5]} 20... Nbd7 {[%clk 0:01:33.4]}
21. Qd2 {[%clk 0:01:59.4]} 21... Nh7 {[%clk 0:01:25.6]} 22. Nd4 {[%clk 0:01:47]}
22... Ne5 {[%clk 0:01:10.2]} 23. Nc6 {[%clk 0:01:27]} 23... Bxc6 {[%clk
0:00:58.5]} 24. dxc6 {[%clk 0:01:27.9]} 24... Qe7 {[%clk 0:00:53.9]} 25. Be3
{[%clk 0:01:20.4]} 25... g5 {[%clk 0:00:46.9]} 26. Nf1 {[%clk 0:01:09.6]} 26...
g4 {[%clk 0:00:45]} 27. hxg4 {[%clk 0:01:01.7]} 27... Nxg4 {[%clk 0:00:43]} 28.
Ng3 {[%clk 0:00:59.4]} 28... Be5 {[%clk 0:00:41.1]} 29. Nf5 {[%clk 0:00:42.9]}
29... Qf6 {[%clk 0:00:35.9]} 30. Bf4 {[%clk 0:00:39.9]} 30... Bxf4 {[%clk
0:00:28.8]} 31. Qxf4 {[%clk 0:00:40.8]} 31... Qe5 {[%clk 0:00:19]} 32. Nh6+
{[%clk 0:00:31.4]} 32... Kg7 {[%clk 0:00:11.8]} 33. Nf5+ {[%clk 0:00:27.9]}
33... Kh8 {[%clk 0:00:10.6]} 34. Qxe5+ {[%clk 0:00:28.2]} 34... Nxe5 {[%clk
0:00:10.8]} 35. f4 {[%clk 0:00:27.9]} 35... Ng6 {[%clk 0:00:10.9]} 36. g3 {[%clk
0:00:26.5]} 36... Nf6 {[%clk 0:00:11.1]} 37. Kf2 {[%clk 0:00:25]} 37... Ng4+
{[%clk 0:00:11.4]} 38. Kf3 {[%clk 0:00:24.4]} 38... Nh2+ {[%clk 0:00:10.5]} 39.
Kg2 {[%clk 0:00:24.3]} 39... Ng4 {[%clk 0:00:11.1]} 40. Rh1 {[%clk 0:00:22.1]}
40... Nf6 {[%clk 0:00:11.2]} 41. Kf3 {[%clk 0:00:21.6]} 41... Kg8 {[%clk
0:00:11.5]} 42. Bd3 {[%clk 0:00:17.8]} 42... Ne7 {[%clk 0:00:09.8]} 43. Ne3
{[%clk 0:00:13.9]} 43... Ng6 {[%clk 0:00:07.1]} 44. g4 {[%clk 0:00:13]} 44...
hxg4+ {[%clk 0:00:07.1]} 45. Nxg4 {[%clk 0:00:13.9]} 45... Nxg4 {[%clk
0:00:06.9]} 46. Kxg4 {[%clk 0:00:14.3]} 46... Kg7 {[%clk 0:00:07.6]} 47. Kf3
{[%clk 0:00:14]} 47... Rh8 {[%clk 0:00:07.5]} 48. a4 {[%clk 0:00:11.4]} 48...
bxa4 {[%clk 0:00:06.4]} 49. bxa4 {[%clk 0:00:11.4]} 49... a5 {[%clk 0:00:05.9]}
50. Rxh8 {[%clk 0:00:08.9]} 50... Rxh8 {[%clk 0:00:06.8]} 51. Rb1 {[%clk
0:00:06.9]} 51... Rh3+ {[%clk 0:00:06.7]} 52. Kg4 {[%clk 0:00:03.6]} 52... Rxd3
{[%clk 0:00:06.8]} 53. Rb7 {[%clk 0:00:04]} 53... Rc3 {[%clk 0:00:05.1]} 54.
Rxc7 {[%clk 0:00:04.4]} 54... Rc4 {[%clk 0:00:05.6]} 55. Rc8 {[%clk 0:00:02.6]}
55... Rxe4 {[%clk 0:00:05.2]} 56. c7 {[%clk 0:00:02.6]} 56... Rxf4+ {[%clk
0:00:05.3]} 57. Kg3 {[%clk 0:00:03.3]} 57... Rc4 {[%clk 0:00:05.5]} 58. Ra8
{[%clk 0:00:03.1]} 58... Rxc7 {[%clk 0:00:05.1]} 59. Rxa5 {[%clk 0:00:04]} 59...
Rc3+ {[%clk 0:00:05.8]} 60. Kf2 {[%clk 0:00:03.5]} 60... Ne5 {[%clk 0:00:06.2]}
61. Ra6 {[%clk 0:00:03.2]} 61... Ra3 {[%clk 0:00:06]} 62. Rxd6 {[%clk
0:00:02.9]} 62... Rxa4 {[%clk 0:00:05.6]} 63. Rd8 {[%clk 0:00:03.8]} 63... Ra2+
{[%clk 0:00:04.8]} 64. Ke3 {[%clk 0:00:03.7]} 64... Ra6 {[%clk 0:00:05.7]} 65.
Rb8 {[%clk 0:00:03.5]} 65... Ng6 {[%clk 0:00:05.9]} 66. Ke4 {[%clk 0:00:03.7]}
66... Re6+ {[%clk 0:00:06.4]} 67. Kf5 {[%clk 0:00:04.1]} 67... Re5+ {[%clk
0:00:06.2]} 68. Kg4 {[%clk 0:00:04.5]} 68... f6 {[%clk 0:00:06.5]} 69. Rb7+
{[%clk 0:00:04.4]} 69... Kh6 {[%clk 0:00:06.9]} 70. Rb8 {[%clk 0:00:05.3]} 70...
Rg5+ {[%clk 0:00:06.3]} 71. Kf3 {[%clk 0:00:04.8]} 71... Rf5+ {[%clk 0:00:06.5]}
72. Kg3 {[%clk 0:00:04.8]} 72... Re5 {[%clk 0:00:06.4]} 73. Kg4 {[%clk
0:00:04.8]} 73... f5+ {[%clk 0:00:05.9]} 74. Kf3 {[%clk 0:00:05.3]} 74... Kg5
{[%clk 0:00:06.3]} 75. Rb6 {[%clk 0:00:04.7]} 75... Ra5 {[%clk 0:00:06.2]} 76.
Rc6 {[%clk 0:00:04.2]} 76... Ne5+ {[%clk 0:00:06.5]} 77. Kg3 {[%clk 0:00:04.4]}
77... Nxc6 {[%clk 0:00:07.4]} 0-1

[Event "*** Titled Tuesday Blitz"]
[Site "Chess.com"]
[Date "2020.05.05"]
[Round "3"]
[White "MFguimaraes"]
[Black "Szczor"]
[Result "0-1"]
[WhiteElo "2406"]
[BlackElo "2636"]
[TimeControl "180+1"]
[EndTime "10:31:22 PDT"]
[Termination "Szczor won on time"]

1. e4 {[%clk 0:03:00.9]} 1... c5 {[%clk 0:03:00.1]} 2. Nf3 {[%clk 0:03:00.9]}
2... d6 {[%clk 0:03:00.7]} 3. d4 {[%clk 0:03:00.7]} 3... cxd4 {[%clk 0:03:01.6]}
4. Nxd4 {[%clk 0:03:01.3]} 4... Nf6 {[%clk 0:03:02.2]} 5. Nc3 {[%clk 0:03:01.8]}
5... a6 {[%clk 0:03:02.7]} 6. g3 {[%clk 0:03:02.2]} 6... e6 {[%clk 0:03:03]} 7.
Nde2 {[%clk 0:03:02.7]} 7... Nbd7 {[%clk 0:03:03.3]} 8. Bg2 {[%clk 0:03:03.3]}
8... Be7 {[%clk 0:03:03.1]} 9. O-O {[%clk 0:03:03.8]} 9... O-O {[%clk
0:03:03.7]} 10. a4 {[%clk 0:03:04.1]} 10... Qc7 {[%clk 0:03:03.8]} 11. Be3
{[%clk 0:03:03.7]} 11... Ne5 {[%clk 0:03:03.4]} 12. b3 {[%clk 0:03:02.1]} 12...
b6 {[%clk 0:02:58.7]} 13. a5 {[%clk 0:03:01.1]} 13... bxa5 {[%clk 0:02:56.5]}
14. Na4 {[%clk 0:03:00.4]} 14... Bb7 {[%clk 0:02:52.6]} 15. Bb6 {[%clk
0:02:45.5]} 15... Qb8 {[%clk 0:02:46.9]} 16. f3 {[%clk 0:02:38.4]} 16... d5
{[%clk 0:02:38.3]} 17. f4 {[%clk 0:02:23.9]} 17... Ned7 {[%clk 0:02:30]} 18. e5
{[%clk 0:02:21.5]} 18... Nxb6 {[%clk 0:02:16.2]} 19. exf6 {[%clk 0:02:21.7]}
19... Bxf6 {[%clk 0:02:17]} 20. Nxb6 {[%clk 0:02:21.1]} 20... Qa7 {[%clk
0:02:17.6]} 21. Ra2 {[%clk 0:02:03.5]} 21... Qxb6+ {[%clk 0:02:17.3]} 22. Kh1
{[%clk 0:02:04.1]} 22... Rac8 {[%clk 0:02:14.3]} 23. Qd2 {[%clk 0:02:03.5]}
23... Qb4 {[%clk 0:02:06.7]} 24. Rd1 {[%clk 0:02:01.4]} 24... Rc7 {[%clk
0:02:01.6]} 25. Rxa5 {[%clk 0:01:58]} 25... Qxd2 {[%clk 0:01:46]} 26. Rxd2
{[%clk 0:01:58.9]} 26... Rfc8 {[%clk 0:01:44.3]} 27. c4 {[%clk 0:01:50.6]} 27...
dxc4 {[%clk 0:01:36.3]} 28. bxc4 {[%clk 0:01:49.2]} 28... Bxg2+ {[%clk
0:01:32.4]} 29. Kxg2 {[%clk 0:01:50.1]} 29... Rxc4 {[%clk 0:01:25.8]} 30. Rxa6
{[%clk 0:01:49.7]} 30... g6 {[%clk 0:01:23]} 31. Rad6 {[%clk 0:01:46.2]} 31...
Kg7 {[%clk 0:01:20.8]} 32. h4 {[%clk 0:01:45.7]} 32... h5 {[%clk 0:01:20.3]} 33.
Ng1 {[%clk 0:01:41.2]} 33... Rc3 {[%clk 0:01:16.6]} 34. Nf3 {[%clk 0:01:40.2]}
34... Ra3 {[%clk 0:01:14.5]} 35. R6d3 {[%clk 0:01:40]} 35... Rcc3 {[%clk
0:01:09.6]} 36. Rxc3 {[%clk 0:01:39.7]} 36... Rxc3 {[%clk 0:01:10.5]} 37. Ra2
{[%clk 0:01:32.5]} 37... Rb3 {[%clk 0:01:10]} 38. Kf2 {[%clk 0:01:31.8]} 38...
Be7 {[%clk 0:01:09.2]} 39. Ne5 {[%clk 0:01:28]} 39... Bc5+ {[%clk 0:01:08.9]}
40. Kg2 {[%clk 0:01:28.4]} 40... Bd4 {[%clk 0:01:09]} 41. Nc4 {[%clk 0:01:16.1]}
41... Rc3 {[%clk 0:01:03.5]} 42. Ra4 {[%clk 0:01:14.4]} 42... Rc2+ {[%clk
0:01:00.3]} 43. Kf3 {[%clk 0:01:06]} 43... Rf2+ {[%clk 0:00:58.5]} 44. Ke4
{[%clk 0:01:05.7]} 44... Bf6 {[%clk 0:00:55.3]} 45. Nd6 {[%clk 0:01:00.8]} 45...
Be7 {[%clk 0:00:55.2]} 46. Ne8+ {[%clk 0:00:58.7]} 46... Kf8 {[%clk 0:00:52.9]}
47. Ra8 {[%clk 0:00:58.5]} 47... f5+ {[%clk 0:00:50.7]} 48. Kd3 {[%clk
0:00:40.5]} 48... Kf7 {[%clk 0:00:42.9]} 49. Nc7 {[%clk 0:00:26.3]} 49... Rg2
{[%clk 0:00:41.4]} 50. Ra6 {[%clk 0:00:21.7]} 50... Rxg3+ {[%clk 0:00:41.5]} 51.
Ke2 {[%clk 0:00:20.6]} 51... Rg4 {[%clk 0:00:33.7]} 52. Nxe6 {[%clk 0:00:18.7]}
52... Rxh4 {[%clk 0:00:33.1]} 53. Kf3 {[%clk 0:00:18.6]} 53... Rh1 {[%clk
0:00:32.6]} 54. Nd4 {[%clk 0:00:15.4]} 54... Rd1 {[%clk 0:00:29.8]} 55. Nc6
{[%clk 0:00:12.4]} 55... Bf6 {[%clk 0:00:24.7]} 56. Ra7+ {[%clk 0:00:11.7]}
56... Ke6 {[%clk 0:00:25.2]} 57. Ra6 {[%clk 0:00:12.1]} 57... Rd6 {[%clk
0:00:24.6]} 58. Ke3 {[%clk 0:00:10.2]} 58... g5 {[%clk 0:00:22.9]} 59. Kf3
{[%clk 0:00:10.6]} 59... g4+ {[%clk 0:00:22.8]} 60. Kg3 {[%clk 0:00:10.9]} 60...
h4+ {[%clk 0:00:23.2]} 61. Kg2 {[%clk 0:00:11]} 61... h3+ {[%clk 0:00:23.7]} 62.
Kg3 {[%clk 0:00:11]} 62... Kd5 {[%clk 0:00:17.2]} 63. Nb4+ {[%clk 0:00:10.5]}
63... Kc5 {[%clk 0:00:17.8]} 64. Rxd6 {[%clk 0:00:07.9]} 64... Kxd6 {[%clk
0:00:18.7]} 65. Nd3 {[%clk 0:00:06.6]} 65... Bd4 {[%clk 0:00:17.3]} 66. Nc1
{[%clk 0:00:04.8]} 66... Be3 {[%clk 0:00:16.6]} 67. Ne2 {[%clk 0:00:05.1]} 67...
Kd5 {[%clk 0:00:16.5]} 68. Nc3+ {[%clk 0:00:05]} 68... Kd4 {[%clk 0:00:16.4]}
69. Nb5+ {[%clk 0:00:05.2]} 69... Kd3 {[%clk 0:00:15.1]} 70. Nd6 {[%clk
0:00:04.8]} 70... Bxf4+ {[%clk 0:00:15.1]} 71. Kxf4 {[%clk 0:00:05.2]} 71... h2
{[%clk 0:00:15.6]} 72. Nxf5 {[%clk 0:00:06]} 72... h1=Q {[%clk 0:00:15.5]} 73.
Kxg4 {[%clk 0:00:06.5]} 73... Qe4+ {[%clk 0:00:15.7]} 74. Kg5 {[%clk 0:00:06.7]}
74... Qf3 {[%clk 0:00:15.7]} 75. Nh4 {[%clk 0:00:04]} 75... Qg3+ {[%clk
0:00:14.8]} 76. Kh5 {[%clk 0:00:03.5]} 76... Ke4 {[%clk 0:00:14.8]} 77. Ng6
{[%clk 0:00:02.7]} 77... Kf5 {[%clk 0:00:14]} 78. Ne7+ {[%clk 0:00:02.1]} 78...
Ke6 {[%clk 0:00:12.8]} 79. Ng6 {[%clk 0:00:01.9]} 79... Kf6 {[%clk 0:00:12.3]}
0-1

[Event "*** Titled Tuesday Blitz"]
[Site "Chess.com"]
[Date "2020.05.05"]
[Round "3"]
[White "SharapovEvgeny"]
[Black "TengisChess"]
[Result "1-0"]
[WhiteElo "2359"]
[BlackElo "2527"]
[TimeControl "180+1"]
[EndTime "10:31:36 PDT"]
[Termination "SharapovEvgeny won by checkmate"]

1. e4 {[%clk 0:02:59.5]} 1... c6 {[%clk 0:02:59.9]} 2. d4 {[%clk 0:02:58.6]}
2... d5 {[%clk 0:03:00.8]} 3. Nc3 {[%clk 0:02:58.4]} 3... dxe4 {[%clk
0:03:00.7]} 4. Nxe4 {[%clk 0:02:58]} 4... Nf6 {[%clk 0:03:01.6]} 5. Nxf6+ {[%clk
0:02:56.8]} 5... gxf6 {[%clk 0:03:02.5]} 6. c3 {[%clk 0:02:54.5]} 6... h5 {[%clk
0:03:03.4]} 7. Nf3 {[%clk 0:02:52.9]} 7... h4 {[%clk 0:03:04.3]} 8. h3 {[%clk
0:02:51.4]} 8... Bf5 {[%clk 0:03:04.2]} 9. Be3 {[%clk 0:02:50]} 9... Nd7 {[%clk
0:03:03.7]} 10. Bd3 {[%clk 0:02:48.6]} 10... Bxd3 {[%clk 0:03:03.4]} 11. Qxd3
{[%clk 0:02:47.7]} 11... Nb6 {[%clk 0:03:04.3]} 12. O-O-O {[%clk 0:02:46.8]}
12... Qd5 {[%clk 0:03:04.2]} 13. Kb1 {[%clk 0:02:45.3]} 13... Qb5 {[%clk
0:03:00.6]} 14. Qxb5 {[%clk 0:02:43.6]} 14... cxb5 {[%clk 0:03:01.5]} 15. Rhe1
{[%clk 0:02:38.9]} 15... Nd5 {[%clk 0:03:01.2]} 16. Bc1 {[%clk 0:02:37.2]} 16...
e6 {[%clk 0:03:00.9]} 17. Re4 {[%clk 0:02:32]} 17... Bd6 {[%clk 0:02:55.6]} 18.
Rxh4 {[%clk 0:02:30.8]} 18... Rxh4 {[%clk 0:02:53.8]} 19. Nxh4 {[%clk
0:02:30.5]} 19... Ke7 {[%clk 0:02:53]} 20. Nf3 {[%clk 0:02:28.7]} 20... Rh8
{[%clk 0:02:52]} 21. h4 {[%clk 0:02:27.4]} 21... a5 {[%clk 0:02:47.4]} 22. g3
{[%clk 0:02:26.7]} 22... a4 {[%clk 0:02:46.7]} 23. a3 {[%clk 0:02:25.5]} 23...
Nb6 {[%clk 0:02:47.1]} 24. Ne1 {[%clk 0:02:18.5]} 24... Nc4 {[%clk 0:02:42.9]}
25. Nd3 {[%clk 0:02:17.1]} 25... Kd7 {[%clk 0:02:42.1]} 26. Bf4 {[%clk 0:02:15]}
26... Be7 {[%clk 0:02:40.5]} 27. Ne1 {[%clk 0:02:10.5]} 27... Kc6 {[%clk
0:02:39.7]} 28. Nc2 {[%clk 0:02:09.9]} 28... Kd5 {[%clk 0:02:30.6]} 29. Re1
{[%clk 0:02:08.1]} 29... e5 {[%clk 0:02:25.9]} 30. dxe5 {[%clk 0:02:07]} 30...
fxe5 {[%clk 0:02:26.8]} 31. Ne3+ {[%clk 0:02:02.6]} 31... Nxe3 {[%clk
0:02:18.2]} 32. Bxe3 {[%clk 0:02:02.2]} 32... f5 {[%clk 0:02:06.1]} 33. Rd1+
{[%clk 0:02:00.4]} 33... Ke4 {[%clk 0:02:06.3]} 34. Rd7 {[%clk 0:01:57.8]} 34...
Bf6 {[%clk 0:02:06.3]} 35. Rxb7 {[%clk 0:01:57]} 35... f4 {[%clk 0:02:06.7]} 36.
gxf4 {[%clk 0:01:56]} 36... exf4 {[%clk 0:02:07]} 37. Ba7 {[%clk 0:01:45.2]}
37... Rh5 {[%clk 0:02:04.8]} 38. Kc2 {[%clk 0:01:31.2]} 38... Bxh4 {[%clk
0:02:04.2]} 39. b3 {[%clk 0:01:31.1]} 39... axb3+ {[%clk 0:02:01.5]} 40. Kxb3
{[%clk 0:01:30.8]} 40... Kf3 {[%clk 0:02:02.4]} 41. Rf7 {[%clk 0:01:25.8]} 41...
Rd5 {[%clk 0:01:58.2]} 42. a4 {[%clk 0:01:18]} 42... bxa4+ {[%clk 0:01:55.4]}
43. Kxa4 {[%clk 0:01:17.8]} 43... Rd2 {[%clk 0:01:55.9]} 44. c4 {[%clk
0:01:13.2]} 44... Rc2 {[%clk 0:01:41.6]} 45. Kb5 {[%clk 0:01:10.1]} 45... Rc1
{[%clk 0:01:41.8]} 46. Bd4 {[%clk 0:01:04.5]} 46... Rd1 {[%clk 0:01:39.2]} 47.
Be5 {[%clk 0:01:01.7]} 47... Bg5 {[%clk 0:01:35.8]} 48. c5 {[%clk 0:01:00.3]}
48... Rb1+ {[%clk 0:01:26.9]} 49. Kc4 {[%clk 0:00:59.2]} 49... Rf1 {[%clk
0:01:25.8]} 50. c6 {[%clk 0:00:57.8]} 50... Rc1+ {[%clk 0:01:25.7]} 51. Kd5
{[%clk 0:00:57.2]} 51... Rd1+ {[%clk 0:00:50.2]} 52. Ke6 {[%clk 0:00:56.1]}
52... Rc1 {[%clk 0:00:40.3]} 53. c7 {[%clk 0:00:54.3]} 53... Ke4 {[%clk
0:00:35.6]} 54. Bd6 {[%clk 0:00:50.7]} 54... f3 {[%clk 0:00:33.6]} 55. Kd7
{[%clk 0:00:35.4]} 55... Bd2 {[%clk 0:00:13]} 56. c8=Q {[%clk 0:00:33.1]} 56...
Rxc8 {[%clk 0:00:12.9]} 57. Kxc8 {[%clk 0:00:32.7]} 57... Kd5 {[%clk 0:00:13]}
58. Kd7 {[%clk 0:00:29.1]} 58... Ke4 {[%clk 0:00:13]} 59. Ke6 {[%clk 0:00:27.6]}
59... Bc3 {[%clk 0:00:13.2]} 60. Bc5 {[%clk 0:00:26.1]} 60... Be1 {[%clk
0:00:12.3]} 61. Be3 {[%clk 0:00:23.9]} 61... Bc3 {[%clk 0:00:11.6]} 62. Rf4+
{[%clk 0:00:21.8]} 62... Kd3 {[%clk 0:00:12]} 63. Rxf3 {[%clk 0:00:21.5]} 63...
Ke2 {[%clk 0:00:12.5]} 64. Rf4 {[%clk 0:00:21.2]} 64... Kd3 {[%clk 0:00:11]} 65.
Kf5 {[%clk 0:00:21.6]} 65... Ba5 {[%clk 0:00:08.5]} 66. Kg4 {[%clk 0:00:21.8]}
66... Bc7 {[%clk 0:00:08.4]} 67. Rf3 {[%clk 0:00:22.5]} 67... Ke2 {[%clk
0:00:08.5]} 68. Rh3 {[%clk 0:00:23.1]} 68... Bd6 {[%clk 0:00:08.5]} 69. Bf4
{[%clk 0:00:23.4]} 69... Bf8 {[%clk 0:00:07.2]} 70. f3 {[%clk 0:00:23.2]} 70...
Kd3 {[%clk 0:00:07.1]} 71. Bg5 {[%clk 0:00:23.5]} 71... Kd4 {[%clk 0:00:06.7]}
72. f4 {[%clk 0:00:23.8]} 72... Kd5 {[%clk 0:00:07.3]} 73. f5 {[%clk 0:00:24.2]}
73... Ke5 {[%clk 0:00:07.7]} 74. Re3+ {[%clk 0:00:23.2]} 74... Kd4 {[%clk
0:00:07.5]} 75. Re2 {[%clk 0:00:22.2]} 75... Bb4 {[%clk 0:00:07.2]} 76. f6
{[%clk 0:00:21.1]} 76... Kd5 {[%clk 0:00:07.6]} 77. f7 {[%clk 0:00:20.5]} 77...
Kc4 {[%clk 0:00:08.1]} 78. Be7 {[%clk 0:00:19.8]} 78... Kd3 {[%clk 0:00:08.5]}
79. Bxb4 {[%clk 0:00:17.6]} 79... Kxe2 {[%clk 0:00:08.9]} 80. f8=Q {[%clk
0:00:17.3]} 80... Kd3 {[%clk 0:00:09.4]} 81. Qf4 {[%clk 0:00:16.1]} 81... Kc2
{[%clk 0:00:09.4]} 82. Qc4+ {[%clk 0:00:14.5]} 82... Kb2 {[%clk 0:00:09.3]} 83.
Bc5 {[%clk 0:00:12.6]} 83... Kb1 {[%clk 0:00:09.1]} 84. Qe2 {[%clk 0:00:11.7]}
84... Kc1 {[%clk 0:00:08.5]} 85. Bd4 {[%clk 0:00:11.4]} 85... Kb1 {[%clk
0:00:08.7]} 86. Qb2# {[%clk 0:00:10.6]} 1-0